bitfinex-derivatives/quotes_ETHF0:USTF0_20251107
["timestamp","ask_amount","ask_price","bid_price","bid_amount"]
[1762482093208,0.49171814,3318.6,3318.5,3.6138]
[1762482093408,0.48844,3318.5,3318.4,0.48844]
[1762482093611,0.00330814,3318.6,3318.5,0.48843]
[1762482093811,0.23980814,3318.6,3318.5,0.48843]
[1762482094008,0.00330814,3318.6,3318.3,0.48845]
[1762482094208,0.48845,3318.4,3318.3,0.48845]
[1762482095214,0.1402,3318.5,3318.0,0.151]
[1762482095712,0.48849,3318.2,3318.1,0.48847]
[1762482096309,3.21110814,3318.6,3318.4,0.48844]
[1762482096514,3.69951814,3318.6,3318.4,0.48844]
[1762482096811,3.69951814,3318.6,3318.0,0.151]
[1762482096812,3.69951814,3318.6,3318.5,0.48843]
[1762482097213,0.48845,3318.5,3318.4,0.48844]
[1762482097608,0.133,3318.5,3318.0,0.4044]
[1762482097813,0.48848,3318.2,3318.1,0.2534]
[1762482098019,0.48849,3318.1,3318.0,0.4885]
[1762482098208,0.72399,3318.1,3318.0,0.4885]
[1762482098915,0.85693,3318.5,3318.4,0.48844]
[1762482099916,0.133,3318.5,3317.7,9.41197844]
[1762482100115,0.72406,3317.6,3317.5,3.803]
[1762482100810,0.62878,3317.5,3317.4,4.994e-05]
[1762482104113,6.65758,3317.5,3317.4,4.994e-05]
[1762482104423,0.48876,3316.3,3316.1,9.181]
[1762482104612,0.48881,3315.9,3315.8,0.2534]
[1762482104812,0.1512,3318.0,3317.3,0.2534]
[1762482105017,0.1512,3318.0,3317.1,3.2078]
[1762482105316,0.2355,3317.3,3317.2,0.00452373]
[1762482105622,0.72412,3317.2,3317.1,0.00322884]
[1762482105822,0.48874,3316.4,3316.1,3.2078]
[1762482106019,0.48874,3316.4,3315.7,7.788]
[1762482106020,0.48876,3316.3,3316.0,0.4888]
[1762482106322,0.48876,3316.3,3316.1,0.48878]
[1762482106825,3.93207,3316.2,3316.1,0.00296384]
[1762482107521,3.93207,3316.2,3315.9,0.00452373]
[1762482107522,0.8755,3316.0,3315.9,0.00452373]
[1762482108319,0.3867,3316.0,3315.9,0.00452373]
[1762482108520,0.1512,3316.0,3315.9,0.00715532]
[1762482108826,0.3867,3316.0,3315.9,0.00715532]
[1762482109124,6.1824,3316.0,3314.9,3.69675]
[1762482109315,3.2078,3315.7,3314.9,3.2078]
[1762482109517,0.48904,3314.4,3313.8,2.63688844]
[1762482109722,3.2078,3314.1,3313.5,0.1451]
[1762482110022,0.48918,3313.5,3312.8,3.2078]
[1762482110217,0.48918,3313.5,3312.9,0.48924]
[1762482110218,0.49162223,3313.5,3312.9,0.48924]
[1762482110415,0.49614596,3313.5,3312.9,0.48924]
[1762482110622,0.00696596,3313.5,3312.8,3.21332112]
[1762482111019,0.00696596,3313.5,3313.1,0.48922]
[1762482111326,0.00696596,3313.5,3313.2,0.48921]
[1762482111634,0.00696596,3313.5,3313.1,0.48922]
[1762482111828,0.00696596,3313.5,3313.2,0.4892]
[1762482112524,0.00696596,3313.5,3313.3,0.48919]
[1762482112927,0.48919,3313.4,3312.9,0.48925]
[1762482113236,0.00696596,3313.5,3313.2,0.4892]
[1762482113926,0.00696596,3313.5,3312.8,3.21332112]
[1762482114323,0.00696596,3313.5,3313.0,0.48923]
[1762482114519,0.00696596,3313.5,3312.8,3.70258112]
[1762482115029,0.64041,3313.2,3312.8,3.21332112]
[1762482115230,0.64041,3313.2,3312.8,3.70258112]
[1762482115635,0.1512,3313.2,3312.8,3.21332112]
[1762482115928,0.1512,3313.2,3313.0,0.48923]
[1762482117335,0.2355,3313.1,3313.0,0.48923]
[1762482117523,0.1512,3313.2,3313.0,0.48923]
[1762482117724,0.15816596,3313.5,3313.2,0.4892]
[1762482118129,0.2355,3313.3,3313.2,0.4892]
[1762482118327,0.2355,3313.3,3313.0,0.48923]
[1762482118525,0.2355,3313.2,3312.8,3.21332112]
[1762482118733,0.2355,3312.9,3312.8,0.00552112]
[1762482119029,0.3867,3312.5,3312.1,0.48937]
[1762482119229,0.1512,3312.5,3312.0,3.2078]
[1762482119828,0.64052,3312.5,3312.1,0.48937]
[1762482120028,0.64052,3312.5,3312.2,0.48935]
[1762482120229,0.72487,3312.1,3312.0,0.00265415]
[1762482120432,0.2355,3311.3,3311.2,3.2078]
[1762482120624,0.2355,3310.8,3310.7,2.38667331]
[1762482120821,3.2078,3310.9,3310.0,3.3052]
[1762482121132,0.48969,3310.0,3309.2,3.2078]
[1762482121327,3.2078,3310.2,3309.5,0.14783344]
[1762482121526,0.00310641,3310.0,3309.5,0.14783344]
[1762482121726,0.0756,3309.6,3308.5,3.2804]
[1762482121927,3.2078,3309.0,3308.5,3.2804]
[1762482122132,3.69764,3309.0,3308.5,3.2804]
[1762482122328,0.48986,3308.8,3308.5,3.2078]
[1762482122633,0.48991,3308.5,3307.6,0.49003]
[1762482122834,0.48993,3308.4,3307.8,0.14826415]
[1762482123132,3.2078,3309.1,3308.0,3.2078]
[1762482123332,3.2078,3308.6,3307.8,0.14826415]
[1762482123530,0.0045307,3309.4,3307.8,0.14826415]
[1762482123531,3.2078,3309.0,3307.9,0.48998]
[1762482123732,3.2123307,3309.4,3308.5,3.2078]
[1762482124032,0.00310641,3310.0,3309.7,0.48973]
[1762482124227,0.00310641,3310.0,3309.6,0.1451]
[1762482124732,0.00310641,3310.0,3309.9,0.2482]
[1762482125329,3.2078,3311.1,3310.2,0.2482]
[1762482125533,3.2078,3311.1,3309.7,0.24443834]
[1762482125534,3.2078,3311.5,3311.0,0.1385]
[1762482125730,3.2078,3312.4,3311.0,0.1385]
[1762482125928,3.2078,3311.5,3310.5,3.2078]
[1762482126135,0.48949,3311.4,3310.7,0.48957]
[1762482126328,3.2078,3311.5,3311.1,0.48951]
[1762482126533,0.00675094,3311.4,3311.3,3.2078]
[1762482126729,0.00675094,3311.4,3311.1,0.48952]
[1762482126930,0.48955,3311.0,3310.7,0.00822211]
[1762482127130,0.2385,3310.8,3310.7,0.00822211]
[1762482127433,3.2078,3310.8,3309.8,3.2078]
[1762482127630,3.2078,3310.3,3309.4,3.2078]
[1762482128138,0.48975,3309.6,3309.4,3.2078]
[1762482128429,3.2078,3310.7,3309.4,3.21006357]
[1762482128634,3.2078,3310.7,3309.6,0.1385]
[1762482128836,3.2078,3310.7,3309.7,0.48973]
[1762482129033,0.48959,3310.6,3309.8,3.6975]
[1762482129235,0.48962,3310.5,3309.8,3.69751]
[1762482129436,3.2078,3310.2,3309.6,0.1385]
[1762482129736,3.2078,3310.6,3309.6,0.62823]
[1762482129934,3.2078,3310.6,3309.9,3.2078]
[1762482130135,3.2078,3311.0,3310.4,0.48961]
[1762482130330,3.2078,3311.0,3310.3,0.1385]
[1762482130530,3.2078,3311.0,3310.0,0.48967]
[1762482130531,0.48961,3310.6,3310.0,0.48967]
[1762482130730,3.2078,3311.0,3310.3,0.1385]
[1762482131037,0.48951,3311.2,3310.8,0.48956]
[1762482131329,0.48951,3311.2,3310.4,3.2078]
[1762482131330,0.00675094,3311.4,3311.0,0.1385]
[1762482131546,0.00675094,3311.4,3311.2,0.4895]
[1762482131832,0.00675094,3311.4,3311.0,0.62803]
[1762482132032,0.00675094,3311.4,3311.0,0.1385]
[1762482132333,0.48953,3311.1,3310.9,0.0045307]
[1762482132931,0.0768,3311.0,3310.9,0.0045307]
[1762482133131,0.0768,3311.0,3309.6,3.3463]
[1762482133132,0.48969,3310.0,3309.6,3.3463]
[1762482133328,0.48972,3309.8,3309.6,3.2078]
[1762482133932,3.2078,3310.3,3309.3,0.48979]
[1762482134140,3.2078,3310.3,3309.4,0.49202357]
[1762482134336,0.48975,3309.6,3309.4,0.00226357]
[1762482134637,3.2078,3310.2,3309.6,0.1385]
[1762482134829,0.48961,3310.5,3309.6,3.3463]
[1762482135137,0.48961,3310.5,3309.7,0.48972]
[1762482135138,3.2078,3310.5,3309.7,0.48972]
[1762482135436,3.69749,3310.0,3309.7,0.48972]
[1762482135632,0.48957,3310.8,3310.3,0.62813]
[1762482135834,3.2078,3310.9,3310.3,0.1385]
[1762482135835,0.4896,3310.6,3310.3,0.1385]
[1762482136032,0.00675094,3311.4,3309.4,0.00226357]
[1762482136033,0.0768,3310.3,3309.4,0.00226357]
[1762482136227,0.0768,3310.3,3307.9,3.2078]
[1762482136228,3.2078,3309.5,3307.9,3.2078]
[1762482136539,0.48985,3308.9,3307.9,3.2078]
[1762482136733,3.2078,3309.0,3308.3,3.2078]
[1762482136940,3.2078,3309.1,3308.6,0.48988]
[1762482137133,0.48984,3309.0,3308.6,0.00217371]
[1762482137334,3.21051406,3309.1,3308.6,0.00217371]
[1762482137737,0.48985,3308.9,3308.6,0.49205371]
[1762482138035,0.00271406,3309.1,3308.9,0.62834]
[1762482138526,0.00271406,3309.1,3308.9,8.62834]
[1762482138729,0.00271406,3309.1,3308.9,0.62834]
[1762482139638,0.00271406,3309.1,3308.9,0.1385]
[1762482139840,0.49252406,3309.1,3308.9,0.1385]
[1762482140034,3.70032406,3309.1,3308.9,0.1385]
[1762482140530,3.21051406,3309.1,3308.9,0.62834]
[1762482143936,0.00271406,3309.1,3309.0,0.2482]
[1762482144139,0.0045307,3309.2,3308.9,0.62834]
[1762482144140,0.0045307,3309.2,3309.1,0.73802]
[1762482145034,0.00725923,3309.2,3309.1,0.73802]
[1762482145636,0.00725923,3309.2,3308.9,3.3463]
[1762482145637,3.2078,3309.9,3308.9,3.3463]
[1762482145838,0.48983,3309.1,3308.9,0.1385]
[1762482146235,0.48987,3308.8,3308.6,0.00217371]
[1762482146639,3.4463,3308.7,3308.6,0.00217371]
[1762482146837,0.49001,3307.8,3307.5,0.1385]
[1762482147139,0.48999,3308.0,3307.8,0.49001]
[1762482147645,3.2078,3308.1,3307.9,0.48999]
[1762482148143,3.69777,3308.1,3307.9,0.48999]
[1762482148353,0.72849,3307.9,3307.8,0.00335297]
[1762482148847,0.48994,3308.3,3308.1,0.48996]
[1762482149142,3.2078,3308.6,3307.8,0.00335297]
[1762482149332,3.2078,3308.0,3307.8,0.49335297]
[1762482149532,3.69778,3308.0,3307.8,0.00335297]
[1762482149740,3.2078,3308.0,3307.8,0.49335297]
[1762482149942,0.00277681,3308.8,3308.6,0.48988]
[1762482150838,3.2078,3308.7,3307.9,3.2078]
[1762482151041,0.4899,3308.6,3308.4,0.48991]
[1762482151544,0.48991,3308.5,3308.2,0.62844]
[1762482151842,0.00277681,3308.8,3308.2,0.1385]
[1762482152240,0.48989,3308.6,3308.3,0.48993]
[1762482152442,0.48989,3308.6,3308.4,0.48992]
[1762482153540,0.48997,3308.1,3307.9,3.2078]
[1762482153845,0.48999,3307.9,3307.8,0.00335297]
[1762482154441,0.72849,3307.9,3307.8,0.00335297]
[1762482154643,0.49013,3307.0,3306.9,3.2078]
[1762482154836,0.0045307,3307.3,3307.1,0.4901]
[1762482155346,0.0045307,3307.3,3306.9,0.49014]
[1762482155542,0.4901,3307.2,3307.0,0.49012]
[1762482155736,0.0045307,3307.3,3307.0,0.49395477]
[1762482155938,0.0045307,3307.3,3307.2,0.2321]
[1762482156136,0.0045307,3307.3,3307.1,3.2078]
[1762482156335,0.0045307,3307.3,3307.1,0.49011]
[1762482156939,0.0045307,3307.3,3307.2,3.4399]
[1762482157147,3.2078,3308.3,3307.5,0.1425]
[1762482157450,0.48991,3308.5,3308.3,0.48993]
[1762482157946,3.2078,3308.7,3308.5,0.48989]
[1762482158139,0.48991,3308.5,3308.3,0.0045307]
[1762482158343,0.2352,3308.4,3308.3,0.0045307]
[1762482159250,3.2078,3308.7,3307.5,0.1425]
[1762482159441,3.2078,3308.2,3307.5,0.1425]
[1762482159645,0.49007,3307.4,3307.3,3.2078]
[1762482160546,3.2773,3308.2,3307.3,3.2078]
[1762482160747,3.2078,3308.2,3307.3,3.2078]
[1762482160947,3.2078,3308.2,3307.6,0.49004]
[1762482161157,0.49002,3307.8,3307.6,0.49004]
[1762482161453,3.2078,3308.2,3307.7,0.49001]
[1762482161753,3.2078,3308.2,3308.0,0.48998]
[1762482162148,0.49001,3307.8,3307.5,0.1414]
[1762482162544,0.49006,3307.5,3307.3,3.2078]
[1762482163550,0.2352,3307.4,3307.3,3.2078]
[1762482164148,0.49011,3307.1,3307.0,0.00383477]
[1762482164348,3.2078,3307.4,3307.0,0.00383477]
[1762482164557,0.4901,3307.2,3307.0,0.00383477]
[1762482165048,0.2352,3307.1,3307.0,0.00383477]
[1762482165765,0.49023,3306.3,3306.0,3.2078]
[1762482165945,0.0045307,3306.5,3306.1,0.49026]
[1762482166141,0.49025,3306.2,3306.0,3.2078]
[1762482166346,3.2078,3306.4,3305.9,0.49029]
[1762482166554,0.49023,3306.3,3306.1,0.49025]
[1762482166745,0.49339084,3306.3,3306.1,0.4924302]
[1762482166945,0.49339084,3306.3,3306.1,0.0021802]
[1762482168357,0.2352,3305.3,3304.7,2.77963844]
[1762482168552,3.2078,3306.1,3305.1,3.2078]
[1762482169057,0.49034,3305.6,3305.3,0.49037]
[1762482169353,0.72557,3305.4,3305.3,0.00369465]
[1762482170253,0.3047,3305.4,3305.3,0.00369465]
[1762482170454,0.2352,3305.4,3305.3,0.00369465]
[1762482171261,0.49051,3304.5,3304.3,3.2078]
[1762482171455,0.4905,3304.5,3304.3,3.2078]
[1762482172256,0.00453781,3304.7,3304.5,0.4905]
[1762482172959,3.6981,3305.9,3305.5,0.49035]
[1762482173159,3.2078,3305.9,3305.4,0.1414]
[1762482173455,0.49041,3305.1,3304.8,0.49045]
[1762482173763,0.4904,3305.2,3304.9,0.49043]
[1762482173961,0.49044,3304.9,3304.7,3.3492]
[1762482174257,3.2078,3305.0,3304.6,0.00453781]
[1762482174464,0.49044,3304.9,3304.7,0.1414]
[1762482175155,0.49047,3304.7,3304.6,0.00453781]
[1762482175359,3.2078,3305.0,3304.8,0.49045]
[1762482175861,3.2078,3305.0,3304.9,0.2544]
[1762482176556,0.49491781,3305.3,3305.1,0.4904]
[1762482176759,0.00453781,3305.3,3305.1,0.4904]
[1762482176956,0.00453781,3305.3,3305.2,0.2544]
[1762482177152,3.2078,3306.1,3305.7,0.49031]
[1762482177354,3.2078,3306.1,3305.0,3.2078]
[1762482177554,0.4904,3305.2,3305.0,3.2078]
[1762482177750,0.49042,3305.1,3304.8,0.49044]
[1762482177959,0.49042,3305.1,3304.9,0.49044]
[1762482178364,0.4904,3305.2,3304.7,0.1414]
[1762482178562,3.21233781,3305.3,3304.7,0.1414]
[1762482178761,0.00453781,3305.3,3305.2,0.2544]
[1762482178962,0.00453781,3305.3,3304.7,0.1414]
[1762482178963,0.49491781,3305.3,3305.0,0.49042]
[1762482179256,0.49044,3304.9,3304.7,0.1414]
[1762482179461,0.00453781,3305.3,3304.7,0.1414]
[1762482179664,0.00453781,3305.3,3304.9,0.49044]
[1762482179862,0.00453781,3305.3,3305.1,0.4904]
[1762482180264,0.00453781,3305.3,3305.2,0.2544]
[1762482180770,0.00453781,3305.3,3304.9,3.69823]
[1762482180966,0.00453781,3305.3,3305.1,0.49041]
[1762482181166,0.00453781,3305.3,3305.2,0.2544]
[1762482181756,3.2078,3306.1,3306.0,0.49027]
[1762482182062,3.2078,3306.1,3305.4,0.1414]
[1762482182263,3.2078,3305.6,3305.3,0.49037]
[1762482182461,3.2078,3305.6,3305.4,0.49036]
[1762482182664,0.00316084,3306.3,3305.4,0.49036]
[1762482182665,0.00453781,3305.8,3305.4,0.1414]
[1762482182959,0.00453781,3305.8,3305.6,0.49033]
[1762482183556,0.00453781,3305.8,3305.4,0.1414]
[1762482183758,3.2078,3305.6,3304.8,3.2078]
[1762482183959,0.4904,3305.2,3304.8,3.2078]
[1762482184258,0.4904,3305.2,3304.8,3.69825]
[1762482184753,0.4904,3305.2,3304.8,3.2078]
[1762482184959,0.2527,3304.7,3304.0,3.3492]
[1762482185264,0.49051,3304.4,3303.7,0.49061]
[1762482185456,3.95101,3304.4,3303.7,0.49061]
[1762482185967,3.95101,3304.4,3303.6,3.2078]
[1762482186166,3.95101,3304.4,3303.7,0.49061]
[1762482186464,3.95101,3304.4,3304.0,0.00453781]
[1762482186659,3.2078,3304.4,3304.2,0.49054]
[1762482186856,3.2078,3304.4,3304.0,0.14773781]
[1762482187056,3.2078,3304.4,3304.0,0.63830781]
[1762482187263,3.2078,3304.4,3304.2,0.49054]
[1762482187562,3.2078,3304.4,3304.0,0.14773781]
[1762482187767,3.4605,3304.4,3304.1,0.49055]
[1762482188071,4.317,3305.2,3304.0,0.00453781]
[1762482188072,3.2078,3304.8,3304.4,0.49051]
[1762482188361,3.2078,3304.8,3304.0,3.35553781]
[1762482188571,3.2078,3304.8,3304.0,0.14773781]
[1762482188765,3.2078,3304.5,3304.0,0.63830781]
[1762482188966,3.2078,3304.9,3304.4,0.49051]
[1762482189278,3.2078,3305.3,3304.8,0.49045]
[1762482189770,3.2078,3305.3,3304.5,3.2078]
[1762482189969,3.2078,3305.1,3304.0,3.35553781]
[1762482190167,3.69822,3305.1,3304.0,3.35553781]
[1762482190369,0.49043,3305.0,3304.5,0.49049]
[1762482190763,3.2078,3305.1,3304.8,0.49045]
[1762482190969,3.2078,3305.1,3304.9,0.49043]
[1762482191174,3.2078,3305.1,3305.0,0.2373]
[1762482191662,0.00453781,3305.8,3305.7,0.49032]
[1762482192370,0.00453781,3305.8,3305.7,0.72762]
[1762482193176,0.00453781,3305.8,3305.3,3.2078]
[1762482193373,3.69812,3305.7,3305.2,0.49039]
[1762482193574,0.00453781,3305.8,3305.5,0.49034]
[1762482193773,0.00453781,3305.8,3305.4,0.1432]
[1762482194171,0.00453781,3305.8,3305.6,0.49033]
[1762482194973,0.00453781,3305.8,3305.4,0.1432]
[1762482195374,3.2078,3305.7,3304.9,3.2078]
[1762482195788,0.49041,3305.1,3304.9,3.2078]
[1762482196188,3.2078,3305.7,3304.9,3.2078]
[1762482196689,0.49034,3305.6,3305.1,0.4904]
[1762482196886,3.2078,3305.7,3305.1,0.4904]
[1762482197089,3.2078,3305.7,3305.2,0.49039]
[1762482197292,0.49034,3305.6,3305.2,0.49039]
[1762482197592,0.49039,3305.3,3305.0,0.49041]
[1762482197783,0.49039,3305.3,3304.9,3.2078]
[1762482198385,0.49039,3305.3,3304.9,3.69823]
[1762482198993,3.2078,3305.7,3305.1,0.49041]
[1762482199588,0.49036,3305.4,3305.1,0.49041]
[1762482199985,3.2078,3305.7,3304.9,3.2078]
[1762482200386,0.49034,3305.6,3305.2,0.49038]
[1762482200589,3.2078,3305.7,3305.0,0.49041]
[1762482200785,3.2078,3305.7,3304.9,3.2078]
[1762482201288,0.49033,3305.6,3304.9,3.69823]
[1762482201492,0.49037,3305.4,3305.0,0.49042]
[1762482201988,3.2078,3305.7,3304.9,3.2078]
[1762482201989,3.2078,3305.7,3305.6,0.49033]
[1762482202193,3.2078,3305.7,3305.4,0.1432]
[1762482202496,3.2078,3305.7,3305.6,0.49033]
[1762482202695,3.2078,3305.7,3305.6,0.72763]
[1762482202896,0.00453781,3305.8,3305.7,0.72762]
[1762482203694,0.00453781,3305.8,3305.7,3.93542]
[1762482203991,0.00316084,3306.3,3305.7,3.93542]
[1762482203992,0.00316084,3306.3,3306.2,0.72755]
[1762482204694,0.0747,3307.8,3306.8,0.1432]
[1762482204695,3.2078,3307.0,3306.8,0.1432]
[1762482205188,3.2078,3307.0,3306.9,0.2373]
[1762482205389,0.00453781,3307.2,3307.1,0.2373]
[1762482205594,3.2078,3307.8,3307.5,0.1432]
[1762482205796,3.7016124,3307.8,3307.5,0.1432]
[1762482205992,0.49003,3307.7,3307.5,0.1432]
[1762482206293,0.2527,3307.2,3307.1,0.00246256]
[1762482206597,3.4605,3307.2,3307.1,0.00246256]
[1762482206798,3.2078,3307.2,3307.1,0.00246256]
[1762482207392,0.00453781,3307.5,3307.2,0.49009]
[1762482207592,0.00453781,3307.5,3307.3,0.49008]
[1762482207992,0.00453781,3307.5,3307.2,0.1432]
[1762482208195,0.00453781,3307.5,3307.1,0.00246256]
[1762482208196,0.2527,3307.2,3307.1,0.00246256]
[1762482208494,3.4605,3307.2,3307.1,0.00246256]
[1762482209196,3.2078,3307.2,3307.1,0.00246256]
[1762482209397,3.4605,3307.2,3307.1,0.00246256]
[1762482209593,3.2078,3307.2,3307.1,0.00246256]
[1762482210295,0.00453781,3307.5,3307.1,0.00246256]
[1762482210496,3.2078,3307.3,3307.1,0.00246256]
[1762482210892,0.2527,3307.2,3307.1,0.00246256]
[1762482211096,0.3988,3307.2,3307.1,0.00246256]
[1762482214202,0.1461,3307.2,3307.1,0.00246256]
[1762482214898,0.6362,3307.2,3307.1,0.00246256]
[1762482215098,0.8889,3307.2,3307.1,0.00246256]
[1762482215299,0.1461,3307.2,3307.1,0.49258256]
[1762482215500,0.1461,3307.2,3307.1,0.74758256]
[1762482216805,0.1461,3307.2,3307.1,0.25746256]
[1762482217407,0.1461,3307.2,3307.1,0.74757256]
[1762482218399,0.00453781,3307.5,3307.4,0.72317]
[1762482218603,3.2841,3309.0,3307.8,0.139]
[1762482218805,0.48985,3308.9,3307.9,3.2078]
[1762482219007,0.48988,3308.7,3308.2,0.48994]
[1762482219202,0.48985,3308.9,3308.3,0.48993]
[1762482219501,3.2078,3309.0,3308.4,0.139]
[1762482219708,3.21560858,3309.0,3308.9,0.2331]
[1762482220111,0.00780858,3309.0,3308.9,0.2331]
[1762482221413,3.69751,3309.8,3309.3,0.48977]
[1762482221414,3.2078,3309.8,3309.3,0.48977]
[1762482221902,3.69752,3309.8,3309.4,0.48977]
[1762482222101,3.69752,3309.8,3309.0,0.139]
[1762482222304,3.69752,3309.8,3309.3,0.48978]
[1762482222305,0.00297831,3309.7,3309.3,0.48978]
[1762482223312,0.48976,3309.5,3309.0,0.139]
[1762482223612,0.48975,3309.6,3309.1,0.48981]
[1762482224007,0.00297831,3309.7,3309.2,0.4898]
[1762482224211,0.00297831,3309.7,3309.4,0.48977]
[1762482224913,0.49270831,3309.7,3309.4,0.48977]
[1762482225111,0.00297831,3309.7,3309.0,0.139]
[1762482225405,3.2078,3309.4,3309.1,0.48981]
[1762482225611,3.2078,3309.4,3309.2,0.4898]
[1762482225809,0.48983,3309.0,3308.6,0.48989]
[1762482226010,3.3485,3309.0,3308.4,0.00453781]
[1762482226206,3.2078,3309.0,3308.4,0.14353781]
[1762482226608,3.69764,3309.0,3308.7,0.48986]
[1762482226907,0.48988,3308.7,3308.4,0.14353781]
[1762482227508,3.2078,3309.0,3308.4,0.14353781]
[1762482227706,3.2078,3309.0,3308.4,0.00453781]
[1762482227707,0.4899,3308.6,3308.4,0.00453781]
[1762482228208,0.2333,3308.5,3308.4,0.00453781]
[1762482229014,0.49002,3307.8,3307.5,3.2078]
[1762482229910,0.49,3307.9,3307.5,3.2078]
[1762482230908,0.49001,3307.8,3307.5,3.69785]
[1762482231417,3.70232781,3308.0,3307.6,0.49003]
[1762482231611,1.1620085,3309.6,3307.4,0.00453781]
[1762482231612,3.2078,3308.6,3307.8,0.139]
[1762482231812,0.00240017,3309.8,3308.3,3.2078]
[1762482232015,0.00240017,3309.8,3309.7,3.2078]
[1762482232211,0.00240017,3309.8,3309.7,3.21170675]
[1762482235411,0.23570017,3309.8,3309.7,0.00390675]
[1762482236104,0.2333,3309.5,3309.3,3.2078]
[1762482236313,0.72307,3309.4,3309.3,3.2078]
[1762482237108,0.72307,3309.4,3309.3,3.20994135]
[1762482237304,0.2333,3309.4,3309.3,0.00214135]
[1762482237513,3.4411,3309.4,3309.3,0.00214135]
[1762482238117,3.4411,3309.4,3309.3,4.135e-05]
[1762482240710,0.2333,3309.4,3309.3,4.135e-05]
[1762482241116,0.1407,3309.6,3309.4,0.48977]
[1762482241416,0.00240017,3309.8,3309.7,0.48972]
[1762482241626,0.1407,3310.8,3310.7,0.48957]
[1762482241922,0.1407,3310.8,3309.3,4.135e-05]
[1762482241923,0.1407,3310.3,3310.2,3.2078]
[1762482242221,0.374,3310.3,3310.2,3.2078]
[1762482242420,0.2333,3309.9,3309.8,3.2078]
[1762482242620,0.23721643,3309.9,3309.8,3.2078]
[1762482245321,0.23721643,3309.9,3309.4,3.2078]
[1762482245322,0.1528,3309.6,3309.4,3.2078]
[1762482245524,0.48975,3309.5,3309.3,4.135e-05]
[1762482245828,0.1528,3309.6,3305.5,8.58728787]
[1762482245829,0.238,3308.7,3308.6,3.2078]
[1762482246024,0.64272,3308.4,3308.2,3.2078]
[1762482246222,0.1528,3308.4,3307.4,3.2078]
[1762482246427,0.1528,3307.8,3307.4,3.2078]
[1762482246728,0.1528,3307.8,3307.4,3.21044232]
[1762482247224,0.49002,3307.7,3307.4,3.21044232]
[1762482247422,0.64281,3307.8,3307.4,3.21044232]
[1762482247930,0.238,3307.5,3307.4,3.21044232]
[1762482248226,0.24140225,3307.5,3307.4,0.00264232]
[1762482249329,0.00340225,3307.5,3307.4,0.00264232]
[1762482249525,0.00340225,3307.5,3307.4,3.21044232]
[1762482249921,0.24140225,3307.5,3307.4,0.00264232]
[1762482250622,0.00340225,3307.5,3307.4,0.00264232]
[1762482250929,0.00340225,3307.5,3307.4,3.21044232]
[1762482251929,0.00340225,3307.5,3307.4,11.21044232]
[1762482252331,0.00340225,3307.5,3307.4,3.21044232]
[1762482252829,0.0045307,3307.9,3307.7,0.49002]
[1762482253028,3.3606,3308.9,3307.8,3.2078]
[1762482253234,3.2078,3309.4,3309.2,0.48978]
[1762482253435,3.69757,3309.4,3308.4,3.2078]
[1762482253834,3.21161023,3309.4,3309.2,0.48979]
[1762482254030,0.00381023,3309.4,3309.2,0.48979]
[1762482254438,0.00381023,3309.4,3309.2,3.69759]
[1762482254932,0.49358023,3309.4,3309.2,3.2078]
[1762482255137,0.00381023,3309.4,3309.2,3.69758]
[1762482255940,0.00381023,3309.4,3309.2,3.69759]
[1762482257338,0.00381023,3309.4,3309.2,3.2078]
[1762482257740,0.49358023,3309.4,3309.2,3.6976]
[1762482258038,0.00381023,3309.4,3309.2,3.6976]
[1762482258235,0.238,3309.3,3309.2,3.2078]
[1762482258641,0.00381023,3309.4,3309.2,3.2078]
[1762482258941,0.238,3309.3,3309.2,3.2078]
[1762482259235,0.238,3309.3,3308.0,2.14777844]
[1762482259236,0.3908,3308.9,3308.8,3.2078]
[1762482259738,0.1528,3308.9,3308.8,3.2078]
[1762482259944,0.00381023,3309.4,3308.8,3.2078]
[1762482260245,0.00381023,3309.4,3309.1,0.4898]
[1762482260440,0.00381023,3309.4,3309.2,0.4898]
[1762482261137,0.00381023,3309.4,3308.8,3.2123307]
[1762482261645,0.00381023,3309.4,3309.2,0.4898]
[1762482261841,0.00381023,3309.4,3309.2,3.6976]
[1762482262640,0.00381023,3309.4,3309.3,3.803]
[1762482262945,0.1528,3310.3,3310.2,0.48965]
[1762482263138,3.2078,3311.1,3310.2,3.2078]
[1762482263640,3.2078,3311.1,3310.8,0.48956]
[1762482263837,0.15597212,3311.0,3310.8,0.49222973]
[1762482265149,0.00317212,3311.0,3310.8,0.49222973]
[1762482265649,0.0045307,3311.2,3311.1,0.48952]
[1762482265851,0.0045307,3311.2,3311.1,3.69732]
[1762482266052,0.0045307,3311.2,3311.1,3.2078]
[1762482266644,0.00789184,3311.2,3311.1,3.2078]
[1762482267552,0.1528,3311.7,3311.6,0.48944]
[1762482268244,0.1528,3311.7,3311.5,3.2078]
[1762482268646,0.15499032,3311.7,3311.5,3.69725]
[1762482269051,0.00219032,3311.7,3311.5,3.69725]
[1762482269238,0.1528,3312.0,3311.9,0.4894]
[1762482269438,0.1528,3312.0,3311.9,3.6972]
[1762482269650,0.48935,3312.3,3312.1,0.48937]
[1762482269841,0.1528,3312.0,3311.9,3.2078]
[1762482270046,0.238,3311.6,3311.5,3.2078]
[1762482270247,0.73066894,3311.6,3311.5,3.2078]
[1762482270448,0.00322894,3311.6,3311.5,3.2078]
[1762482270649,0.1528,3311.4,3311.1,3.2078]
[1762482271053,0.1528,3311.4,3311.2,0.4895]
[1762482271450,0.64228,3311.4,3311.1,3.2078]
[1762482271651,0.1528,3311.4,3311.2,0.4895]
[1762482272458,0.48949,3311.3,3311.2,0.4895]
[1762482272856,0.1528,3311.4,3311.2,0.4895]
[1762482274056,0.00322894,3311.6,3311.5,0.48946]
[1762482274257,0.00322894,3311.6,3311.5,3.69726]
[1762482275854,0.00322894,3311.6,3311.1,3.2078]
[1762482276055,0.00322894,3311.6,3311.5,3.2078]